lending/lending_fUSD_20250131
["ID","MTS","AMOUNT","RATE_DAILY","PERIOD"]
[351109771,1738341038703,-500.0,0.00016438,2]
[351109773,1738341038712,-500.36742382,0.00016438,2]
[351109775,1738341038722,-416.72478951,0.00016438,2]
[351109777,1738341038730,-500.0,0.00016438,2]
[351109779,1738341038740,-500.0,0.00016438,2]
[351109781,1738341038749,-500.0,0.00016438,2]
[351109783,1738341038758,-371.61128705,0.00016438,2]
[351109785,1738341038767,-300.0,0.00016438,2]
[351109787,1738341038776,-500.0,0.00016438,2]
[351109789,1738341038785,-500.0,0.00016438,2]
[351109791,1738341038794,-500.0,0.00016438,2]
[351109793,1738341038804,-500.0,0.00016438,2]
[351109795,1738341038813,-513.57174288,0.00016438,2]
[351109797,1738341038822,-500.0,0.00016438,2]
[351109799,1738341038831,-500.0,0.00016438,2]
[351109801,1738341038841,-500.0,0.00016438,2]
[351109803,1738341038850,-500.0,0.00016438,2]
[351109804,1738341038872,-500.0,0.00016438,2]
[351109805,1738341038882,-503.522603,0.00016438,2]
[351109806,1738341038892,-500.0,0.00016438,2]
[351109807,1738341038901,-500.0,0.00016438,2]
[351109808,1738341038911,-500.0,0.00016438,2]
[351109809,1738341038921,-500.0,0.00016438,2]
[351109810,1738341038931,-500.0,0.00016438,2]
[351109811,1738341038940,-501.15562776,0.00016438,2]
[351109812,1738341038950,-500.0,0.00016438,2]
[351109813,1738341038959,-500.0,0.00016438,2]
[351109814,1738341038969,-512.07030981,0.00016438,2]
[351109815,1738341038978,-500.0,0.00016438,2]
[351109816,1738341038989,-514.3124743,0.00016438,2]
[351109817,1738341038998,-500.0,0.00016438,2]
[351109818,1738341039008,-500.0,0.00016438,2]
[351109819,1738341039017,-500.0,0.00016438,2]
[351109820,1738341039026,-500.0,0.00016438,2]
[351109821,1738341039036,-500.0,0.00016438,2]
[351109822,1738341039045,-500.0,0.00016438,2]
[351109823,1738341039055,-500.0,0.00016438,2]
[351109824,1738341039065,-500.0,0.00016438,2]
[351109826,1738341039074,-288.79681437,0.00016438,2]
[351109828,1738341039088,-500.0,0.00016438,2]
[351109830,1738341039098,-504.35547084,0.00016438,2]
[351109832,1738341039108,-526.60618696,0.00016438,2]
[351109834,1738341039119,-500.0,0.00016438,2]
[351109836,1738341039130,-500.0,0.00016438,2]
[351109838,1738341039139,-500.0,0.00016438,2]
[351109840,1738341039148,-500.0,0.00016438,2]
[351109842,1738341039157,-503.43392142,0.00016438,2]
[351109843,1738341039167,-507.62825643,0.00016438,2]
[351109845,1738341039178,-500.0,0.00016438,2]
[351109847,1738341039187,-500.0,0.00016438,2]
[351109850,1738341039197,-500.0,0.00016438,2]
[351109852,1738341039206,-500.0,0.00016438,2]
[351109853,1738341039215,-500.0,0.00016438,2]
[351109855,1738341039224,-517.89187893,0.00016438,2]
[351109858,1738341039236,-556.93182927,0.00016438,2]
[351109860,1738341039245,-500.0,0.00016438,2]
[351109862,1738341039254,-500.0,0.00016438,2]
[351109864,1738341039264,-500.0,0.00016438,2]
[351109865,1738341039274,-500.0,0.00016438,2]
[351109866,1738341039283,-500.0,0.00016438,2]
[351109867,1738341039292,-300.55795425,0.00016438,2]
[351109868,1738341039302,-500.0,0.00016438,2]
[351109869,1738341039311,-503.42253659,0.00016438,2]
[351109870,1738341039321,-500.0,0.00016438,2]
[351109871,1738341039330,-500.0,0.00016438,2]
[351109872,1738341039339,-500.0,0.00016438,2]
[351109874,1738341039348,-500.0,0.00016438,2]
[351109876,1738341039358,-509.02350804,0.00016438,2]
[351109902,1738341039574,-500.0,0.00016438,2]
[351109904,1738341039583,-500.79110817,0.00016438,2]
[351109906,1738341039593,-500.0,0.00016438,2]
[351109908,1738341039602,-501.7182819,0.00016438,2]
[351109910,1738341039613,-500.0,0.00016438,2]
[351109912,1738341039622,-293.07001972,0.00016438,2]
[351109914,1738341039631,-500.0,0.00016438,2]
[351109916,1738341039640,-500.0,0.00016438,2]
[351109918,1738341039649,-500.0,0.00016438,2]
[351109920,1738341039658,-500.0,0.00016438,2]
[351109922,1738341039667,-500.0,0.00016438,2]
[351109924,1738341039677,-500.0,0.00016438,2]
[351109926,1738341039686,-500.0,0.00016438,2]
[351109928,1738341039695,-503.89840174,0.00016438,2]
[351109930,1738341039704,-500.0,0.00016438,2]
[351109932,1738341039713,-500.0,0.00016438,2]
[351109934,1738341039722,-500.0,0.00016438,2]
[351109936,1738341039731,-500.0,0.00016438,2]
[351109938,1738341039746,-500.0,0.00016438,2]
[351109941,1738341039755,-500.0,0.00016438,2]
[351109942,1738341039764,-500.0,0.00016438,2]
[351109945,1738341039774,-325.28213788,0.00016438,2]
[351109947,1738341039783,-500.0,0.00016438,2]
[351109949,1738341039794,-500.0,0.00016438,2]
[351109950,1738341039804,-500.0,0.00016438,2]
[351109952,1738341039813,-807.19,0.00016438,2]
[351109955,1738341039823,-587.89382099,0.00016438,2]
[351109957,1738341039832,-500.97159244,0.00016438,2]
[351109958,1738341039841,-500.0,0.00016438,2]
[351109960,1738341039851,-500.0,0.00016438,2]
[351109961,1738341039860,-500.0,0.00016438,2]
[351109963,1738341039869,-500.0,0.00016438,2]
[351109965,1738341039878,-501.68272522,0.00016438,2]
[351109967,1738341039887,-500.92181514,0.00016438,2]
[351109969,1738341039896,-878.38,0.00016438,2]
[351109971,1738341039906,-763.13,0.00016438,2]
[351109973,1738341039915,-500.0,0.00016438,2]
[351109975,1738341039924,-744.05,0.00016438,2]
[351109976,1738341039933,-500.0,0.00016438,2]
[351109978,1738341039942,-500.0,0.00016438,2]
[351109980,1738341039952,-500.0,0.00016438,2]
[351109982,1738341039961,-897.46,0.00016438,2]
[351109984,1738341039970,-837.02,0.00016438,2]
[351109986,1738341039979,-386.49232344,0.00016438,2]
[351109988,1738341039991,-500.0,0.00016438,2]
[351109990,1738341040001,-948.39,0.00016438,2]
[351109992,1738341040010,-514.72221422,0.00016438,2]
[351109994,1738341040019,-500.47780323,0.00016438,2]
[351109996,1738341040029,-508.45510436,0.00016438,2]
[351109998,1738341040038,-500.0,0.00016438,2]
[351110000,1738341040048,-500.84008961,0.00016438,2]
[351110002,1738341040057,-500.0,0.00016438,2]
[351110004,1738341040066,-877.11,0.00016438,2]
[351110006,1738341040075,-500.0,0.00016438,2]
[351110008,1738341040085,-500.0,0.00016438,2]
[351110010,1738341040094,-502.19076285,0.00016438,2]
[351110012,1738341040107,-500.0,0.00016438,2]
[351110014,1738341040116,-500.0,0.00016438,2]
[351110016,1738341040125,-500.0,0.00016438,2]
[351110018,1738341040134,-500.0,0.00016438,2]
[351110020,1738341040142,-500.0,0.00016438,2]
[351110022,1738341040153,-500.0,0.00016438,2]
[351110024,1738341040162,-500.0,0.00016438,2]
[351110026,1738341040171,-689.01,0.00016438,2]
[351110028,1738341040181,-1032.65,0.00016438,2]
[351110029,1738341040190,-500.0,0.00016438,2]
[351110031,1738341040200,-500.0,0.00016438,2]
[351110033,1738341040209,-852.88,0.00016438,2]
[351110035,1738341040218,-500.0,0.00016438,2]
[351110037,1738341040227,-773.05,0.00016438,2]
[351110039,1738341040238,-500.0,0.00016438,2]
[351110041,1738341040247,-500.0,0.00016438,2]
[351110043,1738341040256,-500.0,0.00016438,2]
[351110045,1738341040265,-500.0,0.00016438,2]
[351110047,1738341040274,-500.0,0.00016438,2]
[351110049,1738341040283,-500.0,0.00016438,2]
[351110051,1738341040293,-517.15511604,0.00016438,2]
[351110053,1738341040303,-500.0,0.00016438,2]
[351110055,1738341040311,-500.0,0.00016438,2]
[351110057,1738341040320,-500.0,0.00016438,2]
[351110059,1738341040329,-305.53618027,0.00016438,2]
[351110061,1738341040339,-500.0,0.00016438,2]
[351110063,1738341040348,-500.0,0.00016438,2]
[351110065,1738341040356,-500.0,0.00016438,2]
[351110066,1738341040366,-500.0,0.00016438,2]
[351110069,1738341040375,-500.0,0.00016438,2]
[351110071,1738341040384,-500.0,0.00016438,2]
[351110072,1738341040394,-500.0,0.00016438,2]
[351110074,1738341040404,-635.49,0.00016438,2]
[351110076,1738341040413,-500.0,0.00016438,2]
[351110078,1738341040422,-532.73,0.00016438,2]
[351110080,1738341040431,-705.95,0.00016438,2]
[351110082,1738341040440,-500.0,0.00016438,2]
[351110084,1738341040449,-524.24073402,0.00016438,2]
[351110086,1738341040458,-772.77,0.00016438,2]
[351110088,1738341040467,-500.0,0.00016438,2]
[351110090,1738341040477,-1034.95,0.00016438,2]
[351110092,1738341040487,-554.4,0.00016438,2]
[351110094,1738341040496,-537.06924038,0.00016438,2]
[351110096,1738341040505,-502.29379646,0.00016438,2]
[351110097,1738341040514,-500.0,0.00016438,2]
[351110098,1738341040523,-500.0,0.00016438,2]
[351110099,1738341040532,-500.0,0.00016438,2]
[351110100,1738341040540,-500.0,0.00016438,2]
[351110101,1738341040549,-500.0,0.00016438,2]
[351110102,1738341040558,-500.0,0.00016438,2]
[351110103,1738341040567,-500.0,0.00016438,2]
[351110104,1738341040576,-888.61,0.00016438,2]
[351110105,1738341040584,-500.0,0.00016438,2]
[351110106,1738341040594,-500.0,0.00016438,2]
[351110107,1738341040603,-500.0,0.00016438,2]
[351110109,1738341040611,-500.0,0.00016438,2]
[351110111,1738341040620,-500.0,0.00016438,2]
[351110113,1738341040629,-500.0,0.00016438,2]
[351110115,1738341040639,-500.0,0.00016438,2]
[351110117,1738341040647,-500.0,0.00016438,2]
[351110119,1738341040657,-1326.22,0.00016438,2]
[351110121,1738341040666,-506.54714332,0.00016438,2]
[351110123,1738341040676,-331.83183201,0.00016438,2]
[351110125,1738341040684,-500.0,0.00016438,2]
[351110127,1738341040694,-500.0,0.00016438,2]
[351110129,1738341040703,-500.0,0.00016438,2]
[351110131,1738341040712,-505.31921499,0.00016438,2]
[351110133,1738341040721,-567.31,0.00016438,2]
[351110135,1738341040730,-818.24,0.00016438,2]
[351110137,1738341040740,-500.0,0.00016438,2]
[351110139,1738341040750,-500.0,0.00016438,2]
[351110141,1738341040759,-500.0,0.00016438,2]
[351110142,1738341040768,-500.0,0.00016438,2]
[351110144,1738341040777,-503.91669518,0.00016438,2]
[351110146,1738341040788,-664.71,0.00016438,2]
[351110149,1738341040798,-500.0,0.00016438,2]
[351110151,1738341040807,-558.6,0.00016438,2]
[351110152,1738341040816,-503.42105783,0.00016438,2]
[351110154,1738341040825,-501.83952115,0.00016438,2]
[351110156,1738341040835,-502.09938699,0.00016438,2]
[351110158,1738341040844,-1301.36,0.00016438,2]
[351110160,1738341040853,-504.3423282,0.00016438,2]
[351110162,1738341040862,-570.95190722,0.00016438,2]
[351110164,1738341040872,-500.0,0.00016438,2]
[351110166,1738341040881,-507.49374413,0.00016438,2]
[351110168,1738341040890,-1044.43,0.00016438,2]
[351110170,1738341040899,-630.26,0.00016438,2]
[351110172,1738341040908,-500.0,0.00016438,2]
[351110174,1738341040917,-500.0,0.00016438,2]
[351110176,1738341040926,-503.21168285,0.00016438,2]
[351110178,1738341040935,-926.89,0.00016438,2]
[351110180,1738341040944,-500.0,0.00016438,2]
[351110182,1738341040953,-500.0,0.00016438,2]
[351110184,1738341040962,-858.17,0.00016438,2]
[351110186,1738341040971,-500.0,0.00016438,2]
[351110188,1738341040980,-500.0,0.00016438,2]
[351110190,1738341040990,-500.0,0.00016438,2]
[351110192,1738341040999,-500.0,0.00016438,2]
[351110194,1738341041008,-500.0,0.00016438,2]
[351110196,1738341041018,-509.55,0.00016438,2]
[351110199,1738341041029,-600.91,0.00016438,2]
[351110201,1738341041038,-500.0,0.00016438,2]
[351110202,1738341041047,-500.0,0.00016438,2]
[351110204,1738341041057,-155.08167517,0.00016438,2]
[351110207,1738341041066,-500.0,0.00016438,2]
[351110209,1738341041075,-500.0,0.00016438,2]
[351110210,1738341041084,-552.47,0.00016438,2]
[351110212,1738341041094,-5000.0,0.00016438,2]
[351110214,1738341041107,-500.0,0.00016438,2]
[351110216,1738341041116,-500.0,0.00016438,2]
[351110218,1738341041125,-500.0,0.00016438,2]
[351110220,1738341041135,-1226.94,0.00016438,2]
[351110222,1738341041144,-500.0,0.00016438,2]
[351110224,1738341041153,-267.06532083,0.00016438,2]
[351110226,1738341041162,-500.0,0.00016438,2]
[351110228,1738341041171,-222.69249606,0.00016438,2]
[351110230,1738341041181,-500.0,0.00016438,2]
[351110232,1738341041191,-661.6,0.00016438,2]
[351110234,1738341041201,-500.0,0.00016438,2]
[351110236,1738341041210,-848.03,0.00016438,2]
[351110238,1738341041219,-849.19,0.00016438,2]
[351110240,1738341041229,-500.0,0.00016438,2]
[351110242,1738341041239,-500.0,0.00016438,2]
[351110244,1738341041247,-486.97656681,0.00016438,2]
[351110246,1738341041256,-855.59,0.00016438,2]
[351110248,1738341041266,-500.0,0.00016438,2]
[351110250,1738341041275,-500.0,0.00016438,2]
[351110252,1738341041285,-567.99,0.00016438,2]
[351110254,1738341041294,-398.90167552,0.00016438,2]
[351110256,1738341041304,-534.04,0.00016438,2]
[351110258,1738341041313,-590.43,0.00016438,2]
[351110260,1738341041322,-500.0,0.00016438,2]
[351110262,1738341041331,-500.0,0.00016438,2]
[351110264,1738341041340,-1346.55,0.00016438,2]
[351110266,1738341041349,-500.0,0.00016438,2]
[351110268,1738341041358,-598.941275,0.00016438,2]
[351110270,1738341041367,-500.0,0.00016438,2]
[351110272,1738341041377,-1056.37,0.00016438,2]
[351110274,1738341041386,-500.0,0.00016438,2]
[351110275,1738341041395,-503.69207284,0.00016438,2]
[351110277,1738341041405,-500.0,0.00016438,2]
[351110279,1738341041413,-500.0,0.00016438,2]
[351110281,1738341041422,-1175.25,0.00016438,2]
[351110283,1738341041432,-500.0,0.00016438,2]
[351110285,1738341041441,-926.27,0.00016438,2]
[351110287,1738341041450,-591.3,0.00016438,2]
[351110289,1738341041459,-665.969156,0.00016438,2]
[351110291,1738341041468,-500.0,0.00016438,2]
[351110293,1738341041478,-500.0,0.00016438,2]
[351110295,1738341041487,-159.733358,0.00016438,2]
[351110297,1738341041497,-500.0,0.00016438,2]
[351110299,1738341041506,-633.92,0.00016438,2]
[351110301,1738341041515,-500.0,0.00016438,2]
[351110303,1738341041525,-500.0,0.00016438,2]
[351110305,1738341041534,-500.0,0.00016438,2]
[351110307,1738341041543,-797.31,0.00016438,2]
[351110309,1738341041552,-500.0,0.00016438,2]
[351110311,1738341041561,-695.76,0.00016438,2]
[351110313,1738341041571,-507.9,0.00016438,2]
[351110315,1738341041580,-500.0,0.00016438,2]
[351110317,1738341041589,-500.0,0.00016438,2]
[351110319,1738341041598,-501.97764657,0.00016438,2]
[351110321,1738341041607,-500.0,0.00016438,2]
[351110323,1738341041616,-500.0,0.00016438,2]
[351110325,1738341041625,-500.0,0.00016438,2]
[351110327,1738341041634,-500.0,0.00016438,2]
[351110329,1738341041643,-500.0,0.00016438,2]
[351110330,1738341041653,-511.82,0.00016438,2]
[351110331,1738341041661,-500.0,0.00016438,2]
[351110332,1738341041671,-500.0,0.00016438,2]
[351110333,1738341041680,-500.0,0.00016438,2]
[351110334,1738341041689,-540.75,0.00016438,2]
[351110335,1738341041698,-209.92581726,0.00016438,2]
[351110336,1738341041706,-500.0,0.00016438,2]
[351110337,1738341041715,-500.0,0.00016438,2]
[351110338,1738341041724,-500.0,0.00016438,2]
[351110340,1738341041734,-960.56,0.00016438,2]
[351110342,1738341041742,-500.0,0.00016438,2]
[351110344,1738341041751,-500.0,0.00016438,2]
[351110346,1738341041760,-500.0,0.00016438,2]
[351110348,1738341041770,-559.66,0.00016438,2]
[351110350,1738341041779,-500.0,0.00016438,2]
[351110352,1738341041788,-500.0,0.00016438,2]
[351110354,1738341041798,-500.0,0.00016438,2]
[351110356,1738341041807,-500.0,0.00016438,2]
[351110358,1738341041816,-805.14,0.00016438,2]
[351110360,1738341041826,-1047.2,0.00016438,2]
[351110362,1738341041835,-500.0,0.00016438,2]
[351110364,1738341041844,-182.618721,0.00016438,2]
[351110366,1738341041853,-1111.16,0.00016438,2]
[351110368,1738341041862,-500.0,0.00016438,2]
[351110370,1738341041871,-500.0,0.00016438,2]
[351110372,1738341041881,-500.0,0.00016438,2]
[351110374,1738341041890,-500.0,0.00016438,2]
[351110376,1738341041899,-1118.92,0.00016438,2]
[351110378,1738341041908,-500.0,0.00016438,2]
[351110380,1738341041917,-500.0,0.00016438,2]
[351110382,1738341041926,-1740.89,0.00016438,2]
[351110384,1738341041935,-500.0,0.00016438,2]
[351110386,1738341041944,-3867.01,0.00016438,2]
[351110388,1738341041953,-1240.82,0.00016438,2]
[351110390,1738341041962,-304.59812847,0.00016438,2]
[351110392,1738341041972,-153.436238,0.00016438,2]
[351110394,1738341041981,-502.84648867,0.00016438,2]
[351110396,1738341041991,-909.16,0.00016438,2]
[351110398,1738341042000,-669.69,0.00016438,2]
[351110400,1738341042009,-500.0,0.00016438,2]
[351110402,1738341042018,-500.0,0.00016438,2]
[351110404,1738341042027,-1192.54,0.00016438,2]
[351110406,1738341042036,-521.42,0.00016438,2]
[351110407,1738341042046,-636.14,0.00016438,2]
[351110410,1738341042057,-500.0,0.00016438,2]
[351110412,1738341042067,-1387.58,0.00016438,2]
[351110414,1738341042077,-500.0,0.00016438,2]
[351110415,1738341042086,-500.0,0.00016438,2]
[351110417,1738341042096,-500.0,0.00016438,2]
[351110419,1738341042108,-882.74,0.00016438,2]
[351110421,1738341042117,-826.39,0.00016438,2]
[351110423,1738341042128,-500.0,0.00016438,2]
[351110425,1738341042139,-500.0,0.00016438,2]
[351110427,1738341042148,-511.36895195,0.00016438,2]
[351110429,1738341042157,-500.0,0.00016438,2]
[351110431,1738341042166,-500.0,0.00016438,2]
[351110433,1738341042175,-1238.02,0.00016438,2]
[351110435,1738341042187,-728.32,0.00016438,2]
[351110437,1738341042196,-500.0,0.00016438,2]
[351110439,1738341042206,-500.0,0.00016438,2]
[351110441,1738341042215,-500.0,0.00016438,2]
[351110442,1738341042224,-500.0,0.00016438,2]
[351110444,1738341042234,-500.0,0.00016438,2]
[351110445,1738341042243,-500.0,0.00016438,2]
[351110447,1738341042252,-1595.41,0.00016438,2]
[351110448,1738341042261,-919.2,0.00016438,2]
[351110450,1738341042270,-2462.1,0.00016438,2]
[351110451,1738341042279,-500.0,0.00016438,2]
[351110453,1738341042289,-509.67381522,0.00016438,2]
[351110454,1738341042298,-3545.71,0.00016438,2]
[351110456,1738341042307,-2235.45,0.00016438,2]
[351110457,1738341042316,-500.0,0.00016438,2]
[351110459,1738341042326,-500.0,0.00016438,2]
[351110460,1738341042335,-500.0,0.00016438,2]
[351110462,1738341042344,-1493.59,0.00016438,2]
[351110463,1738341042353,-500.0,0.00016438,2]
[351110465,1738341042362,-1452.63,0.00016438,2]
[351110466,1738341042372,-500.0,0.00016438,2]
[351110468,1738341042382,-500.0,0.00016438,2]
[351110470,1738341042392,-1011.3,0.00016438,2]
[351110473,1738341042402,-670.55,0.00016438,2]
[351110476,1738341042411,-1966.97,0.00016438,2]
[351110478,1738341042421,-3059.69,0.00016438,2]
[351110481,1738341042431,-502.3722446,0.00016438,2]
[351110484,1738341042440,-500.0,0.00016438,2]
[351110485,1738341042449,-925.07,0.00016438,2]
[351110488,1738341042459,-1024.12,0.00016438,2]
[351110489,1738341042469,-220.1982826,0.00016438,2]
[351110493,1738341042478,-996.72,0.00016438,2]
[351110496,1738341042488,-1560.24,0.00016438,2]
[351110498,1738341042498,-500.0,0.00016438,2]
[351110501,1738341042507,-584.60255684,0.00016438,2]
[351110503,1738341042516,-500.0,0.00016438,2]
[351110505,1738341042525,-842.77,0.00016438,2]
[351110507,1738341042534,-6697.53,0.00016438,2]
[351110508,1738341042543,-500.0,0.00016438,2]
[351110510,1738341042552,-1441.44,0.00016438,2]
[351110513,1738341042561,-6641.0,0.00016438,2]
[351110515,1738341042570,-1019.94,0.00016438,2]
[351110518,1738341042580,-532.53,0.00016438,2]
[351110520,1738341042589,-497.26747614,0.00016438,2]
[351110521,1738341042598,-4230.68,0.00016438,2]
[351110523,1738341042607,-615.46,0.00016438,2]
[351110525,1738341042616,-736.99,0.00016438,2]
[351110526,1738341042625,-639.94,0.00016438,2]
[351110528,1738341042636,-500.0,0.00016438,2]
[351110530,1738341042645,-507.68050373,0.00016438,2]
[351110531,1738341042655,-1135.29,0.00016438,2]
[351110533,1738341042664,-500.0,0.00016438,2]
[351110534,1738341042673,-500.0,0.00016438,2]
[351110536,1738341042682,-733.77,0.00016438,2]
[351110538,1738341042692,-2595.26,0.00016438,2]
[351110539,1738341042701,-180.59527059,0.00016438,2]
[351110541,1738341042711,-500.0,0.00016438,2]
[351110543,1738341042720,-500.0,0.00016438,2]
[351110544,1738341042729,-852.09,0.00016438,2]
[351110546,1738341042739,-1091.38,0.00016438,2]
[351110548,1738341042748,-549.65730926,0.00016438,2]
[351110549,1738341042757,-500.0,0.00016438,2]
[351110551,1738341042766,-500.0,0.00016438,2]
[351110553,1738341042775,-504.18097968,0.00016438,2]
[351110554,1738341042785,-1172.11,0.00016438,2]
[351110556,1738341042794,-957.2,0.00016438,2]
[351110557,1738341042804,-1092.72,0.00016438,2]
[351110559,1738341042812,-885.0,0.00016438,2]
[351110561,1738341042821,-506.21877436,0.00016438,2]
[351110562,1738341042830,-500.0,0.00016438,2]
[351110564,1738341042840,-657.6,0.00016438,2]
[351110566,1738341042849,-500.0,0.00016438,2]
[351110567,1738341042859,-918.5,0.00016438,2]
[351110569,1738341042868,-500.0,0.00016438,2]
[351110571,1738341042878,-658.33,0.00016438,2]
[351110572,1738341042887,-945.77,0.00016438,2]
[351110574,1738341042897,-500.0,0.00016438,2]
[351110576,1738341042906,-1332.23,0.00016438,2]
[351110577,1738341042915,-1025.25,0.00016438,2]
[351110579,1738341042925,-500.0,0.00016438,2]
[351110581,1738341042934,-500.0,0.00016438,2]
[351110582,1738341042944,-3040.68,0.00016438,2]
[351110584,1738341042953,-500.0,0.00016438,2]
[351110586,1738341042962,-2248.2,0.00016438,2]
[351110588,1738341042971,-500.0,0.00016438,2]
[351110589,1738341042981,-500.0,0.00016438,2]
[351110590,1738341042991,-836.33,0.00016438,2]
[351110591,1738341043001,-664.22,0.00016438,2]
[351110592,1738341043011,-500.0,0.00016438,2]
[351110593,1738341043021,-500.0,0.00016438,2]
[351110594,1738341043030,-500.0,0.00016438,2]
[351110595,1738341043042,-813.38,0.00016438,2]
[351110596,1738341043051,-1267.84,0.00016438,2]
[351110597,1738341043060,-720.3,0.00016438,2]
[351110598,1738341043070,-500.0,0.00016438,2]
[351110599,1738341043079,-708.87,0.00016438,2]
[351110600,1738341043089,-1252.83,0.00016438,2]
[351110602,1738341043104,-500.0,0.00016438,2]
[351110603,1738341043113,-963.8,0.00016438,2]
[351110605,1738341043122,-654.78,0.00016438,2]
[351110607,1738341043131,-1393.27,0.00016438,2]
[351110609,1738341043141,-1301.29,0.00016438,2]
[351110611,1738341043151,-500.0,0.00016438,2]
[351110613,1738341043160,-2640.49,0.00016438,2]
[351110615,1738341043169,-500.0,0.00016438,2]
[351110617,1738341043179,-750.63,0.00016438,2]
[351110619,1738341043189,-2718.63,0.00016438,2]
[351110621,1738341043198,-1377.05,0.00016438,2]
[351110623,1738341043208,-500.0,0.00016438,2]
[351110625,1738341043217,-299.07957434,0.00016438,2]
[351110627,1738341043227,-500.0,0.00016438,2]
[351110630,1738341043237,-594.62,0.00016438,2]
[351110632,1738341043247,-2819.75,0.00016438,2]
[351110634,1738341043256,-500.0,0.00016438,2]
[351110636,1738341043265,-877.0,0.00016438,2]
[351110638,1738341043274,-716.54,0.00016438,2]
[351110640,1738341043284,-2186.0,0.00016438,2]
[351110641,1738341043293,-500.0,0.00016438,2]
[351110643,1738341043303,-2020.67,0.00016438,2]
[351110645,1738341043312,-1930.71,0.00016438,2]
[351110647,1738341043321,-500.0,0.00016438,2]
[351110649,1738341043330,-742.27,0.00016438,2]
[351110651,1738341043339,-970.09,0.00016438,2]
[351110653,1738341043349,-830.08,0.00016438,2]
[351110655,1738341043359,-500.0,0.00016438,2]
[351110657,1738341043368,-554.87,0.00016438,2]
[351110659,1738341043377,-500.0,0.00016438,2]
[351110661,1738341043387,-500.0,0.00016438,2]
[351110663,1738341043397,-1529.47,0.00016438,2]
[351110666,1738341043406,-500.0,0.00016438,2]
[351110668,1738341043416,-500.0,0.00016438,2]
[351110669,1738341043425,-500.0,0.00016438,2]
[351110671,1738341043435,-952.26,0.00016438,2]
[351110674,1738341043444,-1636.35,0.00016438,2]
[351110676,1738341043454,-978.71,0.00016438,2]
[351110695,1738341043661,-2686.37,0.00016438,2]
[351110697,1738341043683,-500.0,0.00016438,2]
[351110699,1738341043704,-1223.0,0.00016438,2]
[351110701,1738341043725,-500.0,0.00016438,2]
[351110703,1738341043743,-500.0,0.00016438,2]
[351110705,1738341043769,-530.71578433,0.00016438,2]
[351110707,1738341043794,-1217.38,0.00016438,2]
[351110709,1738341043817,-337.9175224,0.00016438,2]
[351110711,1738341043838,-1575.93,0.00016438,2]
[351110713,1738341043860,-2356.75,0.00016438,2]
[351110715,1738341043877,-153.7888286,0.00016438,2]
[351110717,1738341043887,-873.53,0.00016438,2]
[351110719,1738341043896,-604.1,0.00016438,2]
[351110721,1738341043906,-3155.33,0.00016438,2]
[351110723,1738341043915,-500.0,0.00016438,2]
[351110725,1738341043925,-550.42,0.00016438,2]
[351110727,1738341043934,-2357.95,0.00016438,2]